[Event "Titled Tuesday Blitz March 28 Late 2023"]
[White "Winkels, Marcel"]
[Black "Di Berardino, Diego Rafael"]
[WhiteFideId "1003887"]
[BlackFideId "2105446"]
[WhiteElo "1900"]
[BlackElo "2432"]
[Result "0-1"]
[Round "01"]
[TimeControl "180+2"]
[Date "2023.03.28"]
[WhiteClock "0:00:16"]
[BlackClock "0:00:16"]

1. e4 {[%clk 0:03:00]}  Nf6 {[%clk 0:02:58]} 2. e5 {[%clk 0:03:00]}  Nd5 {[%clk 0:02:58]} 3. d4 {[%clk 0:03:00]}  d6 {[%clk 0:02:57]} 4. Nf3 {[%clk 0:03:01]}  dxe5 {[%clk 0:02:57]} 5. Nxe5 {[%clk 0:03:00]}  c6 {[%clk 0:02:54]} 6. Be2 {[%clk 0:02:59]}  Bf5 {[%clk 0:02:52]} 7. O-O {[%clk 0:02:44]}  Nd7 {[%clk 0:02:50]} 8. c4 {[%clk 0:02:36]}  N5f6 {[%clk 0:02:48]} 9. Nf3 {[%clk 0:02:35]}  e6 {[%clk 0:02:47]} 10. Nc3 {[%clk 0:02:34]}  Ne4 {[%clk 0:02:44]} 11. Re1 {[%clk 0:02:18]}  Be7 {[%clk 0:02:37]} 12. Bd3 {[%clk 0:02:08]}  Nxc3 {[%clk 0:02:35]} 13. bxc3 {[%clk 0:02:08]}  Bxd3 {[%clk 0:02:35]} 14. Qxd3 {[%clk 0:02:07]}  O-O {[%clk 0:02:30]} 15. Rb1 {[%clk 0:02:05]}  b6 {[%clk 0:02:09]} 16. Bf4 {[%clk 0:02:03]}  Qc8 {[%clk 0:02:00]} 17. Ne5 {[%clk 0:01:58]}  Nxe5 {[%clk 0:02:00]} 18. Bxe5 {[%clk 0:01:58]}  Qd8 {[%clk 0:01:44]} 19. Qf3 {[%clk 0:01:50]}  Rc8 {[%clk 0:01:40]} 20. Re4 {[%clk 0:01:48]}  Bd6 {[%clk 0:01:27]} 21. Rbe1 {[%clk 0:01:44]}  Bxe5 {[%clk 0:01:27]} 22. Rxe5 {[%clk 0:01:43]}  Qd6 {[%clk 0:01:22]} 23. h4 {[%clk 0:01:30]}  Qa3 {[%clk 0:01:15]} 24. R1e2 {[%clk 0:01:23]}  Qa4 {[%clk 0:01:09]} 25. Qd3 {[%clk 0:01:20]}  h6 {[%clk 0:01:01]} 26. h5 {[%clk 0:01:14]}  Rfd8 {[%clk 0:00:48]} 27. c5 {[%clk 0:00:58]}  Rd5 {[%clk 0:00:43]} 28. cxb6 {[%clk 0:00:56]}  axb6 {[%clk 0:00:42]} 29. R5e3 {[%clk 0:00:49]}  c5 {[%clk 0:00:38]} 30. Re4 {[%clk 0:00:43]}  cxd4 {[%clk 0:00:26]} 31. cxd4 {[%clk 0:00:42]}  Rc1+ {[%clk 0:00:24]} 32. Kh2 {[%clk 0:00:41]}  Rxh5+ {[%clk 0:00:24]} 33. Kg3 {[%clk 0:00:39]}  Qb4 {[%clk 0:00:22]} 34. d5 {[%clk 0:00:31]}  Qd6+ {[%clk 0:00:18]} 35. f4 {[%clk 0:00:27]}  Rxd5 {[%clk 0:00:19]} 36. Qe3 {[%clk 0:00:24]}  Rd3 {[%clk 0:00:19]} 37. Kh2 {[%clk 0:00:18]}  Rxe3 {[%clk 0:00:19]} 38. R4xe3 {[%clk 0:00:18]}  Qxf4+ {[%clk 0:00:18]} 39. g3 {[%clk 0:00:19]}  Qf1 {[%clk 0:00:18]} 40. g4 {[%clk 0:00:17]}  Qh1+ {[%clk 0:00:17]} 41. Kg3 {[%clk 0:00:16]}  Rg1+ {[%clk 0:00:18]} 42. Kf4 {[%clk 0:00:16]}  Rf1+ {[%clk 0:00:17]} 43. Ke5 {[%clk 0:00:16]}  Qd5# {[%clk 0:00:16]} 0-1


[Site "https://www.chess.com"]

[Event "Titled Tuesday Blitz March 28 Late 2023"]
[White "Ozates, Tuna"]
[Black "Djordjevic, Dejan N"]
[WhiteFideId "6354521"]
[BlackFideId "913316"]
[WhiteElo "2151"]
[BlackElo "2261"]
[Result "1-0"]
[Round "01"]
[TimeControl "180+2"]
[Date "2023.03.28"]
[WhiteClock "0:00:21"]
[BlackClock "0:00:01"]

1. c4 {[%clk 0:02:55]}  Nf6 {[%clk 0:02:59]} 2. Nc3 {[%clk 0:02:53]}  g6 {[%clk 0:02:56]} 3. g3 {[%clk 0:02:53]}  d6 {[%clk 0:02:57]} 4. Bg2 {[%clk 0:02:53]}  Bg7 {[%clk 0:02:57]} 5. d3 {[%clk 0:02:52]}  O-O {[%clk 0:02:58]} 6. e4 {[%clk 0:02:52]}  Nc6 {[%clk 0:02:58]} 7. Nge2 {[%clk 0:02:52]}  a6 {[%clk 0:02:59]} 8. O-O {[%clk 0:02:51]}  Rb8 {[%clk 0:02:59]} 9. a4 {[%clk 0:02:47]}  Bd7 {[%clk 0:02:58]} 10. a5 {[%clk 0:02:46]}  Qc8 {[%clk 0:02:57]} 11. Re1 {[%clk 0:02:43]}  h6 {[%clk 0:02:53]} 12. Bf4 {[%clk 0:02:32]}  Nh5 {[%clk 0:02:50]} 13. Be3 {[%clk 0:02:32]}  Nf6 {[%clk 0:02:50]} 14. f3 {[%clk 0:02:31]}  Kh7 {[%clk 0:02:47]} 15. Qd2 {[%clk 0:02:31]}  Ne5 {[%clk 0:02:39]} 16. b3 {[%clk 0:02:20]}  Nc6 {[%clk 0:02:27]} 17. d4 {[%clk 0:02:13]}  Ng8 {[%clk 0:02:23]} 18. d5 {[%clk 0:02:13]}  Ne5 {[%clk 0:02:10]} 19. Bd4 {[%clk 0:02:07]}  c5 {[%clk 0:02:10]} 20. dxc6 {[%clk 0:02:07]}  bxc6 {[%clk 0:02:03]} 21. Reb1 {[%clk 0:02:03]}  c5 {[%clk 0:01:43]} 22. Be3 {[%clk 0:02:01]}  Nc6 {[%clk 0:01:41]} 23. Ra3 {[%clk 0:01:57]}  Qc7 {[%clk 0:01:40]} 24. Nd5 {[%clk 0:01:54]}  Qd8 {[%clk 0:01:32]} 25. h4 {[%clk 0:01:51]}  h5 {[%clk 0:01:27]} 26. Kh2 {[%clk 0:01:33]}  Nf6 {[%clk 0:01:23]} 27. Nef4 {[%clk 0:01:28]}  Ne5 {[%clk 0:01:17]} 28. Nxf6+ {[%clk 0:01:25]}  Bxf6 {[%clk 0:01:16]} 29. Nd5 {[%clk 0:01:26]}  Bg7 {[%clk 0:01:15]} 30. Bg5 {[%clk 0:01:25]}  f6 {[%clk 0:01:09]} 31. Be3 {[%clk 0:01:24]}  Nxc4 {[%clk 0:01:09]} 32. bxc4 {[%clk 0:01:21]}  Rxb1 {[%clk 0:01:08]} 33. f4 {[%clk 0:01:18]}  Bg4 {[%clk 0:01:03]} 34. Qc2 {[%clk 0:01:11]}  Rb8 {[%clk 0:00:57]} 35. f5 {[%clk 0:01:10]}  gxf5 {[%clk 0:00:35]} 36. exf5 {[%clk 0:01:10]}  Qd7 {[%clk 0:00:31]} 37. Be4 {[%clk 0:01:09]}  Rg8 {[%clk 0:00:25]} 38. Nf4 {[%clk 0:01:09]}  Bh6 {[%clk 0:00:22]} 39. Ne6 {[%clk 0:00:59]}  Bxe3 {[%clk 0:00:19]} 40. Rxe3 {[%clk 0:01:00]}  Rb4 {[%clk 0:00:17]} 41. Bd5 {[%clk 0:00:59]}  Rgb8 {[%clk 0:00:16]} 42. Qd3 {[%clk 0:00:46]}  Rb2+ {[%clk 0:00:15]} 43. Bg2 {[%clk 0:00:46]}  R8b3 {[%clk 0:00:12]} 44. Nf8+ {[%clk 0:00:39]}  Kg7 {[%clk 0:00:09]} 45. Nxd7 {[%clk 0:00:40]}  Rxd3 {[%clk 0:00:09]} 46. Rxd3 {[%clk 0:00:40]}  Bxf5 {[%clk 0:00:08]} 47. Re3 {[%clk 0:00:31]}  Kf7 {[%clk 0:00:06]} 48. Nb6 {[%clk 0:00:27]}  Ra2 {[%clk 0:00:05]} 49. Nd5 {[%clk 0:00:23]}  e6 {[%clk 0:00:05]} 50. Nf4 {[%clk 0:00:23]}  Rxa5 {[%clk 0:00:02]} 51. Nxh5 {[%clk 0:00:23]}  Ra2 {[%clk 0:00:02]} 52. Nf4 {[%clk 0:00:23]}  a5 {[%clk 0:00:02]} 53. Rb3 {[%clk 0:00:23]}  a4 {[%clk 0:00:01]} 54. Rb7+ {[%clk 0:00:23]}  Ke8 {[%clk 0:00:01]} 55. h5 {[%clk 0:00:21]} 1-0


[Site "https://www.chess.com"]

[Event "Titled Tuesday Blitz March 28 Late 2023"]
[White "Toma, Katarzyna"]
[Black "cryptoguru02"]
[WhiteFideId "1119907"]
[WhiteElo "2149"]
[BlackElo "2546"]
[Result "0-1"]
[Round "01"]
[TimeControl "180+2"]
[Date "2023.03.28"]
[WhiteClock "0:00:02"]
[BlackClock "0:00:17"]

1. e4 {[%clk 0:02:58]}  g6 {[%clk 0:03:00]} 2. d4 {[%clk 0:02:56]}  Bg7 {[%clk 0:03:01]} 3. Nc3 {[%clk 0:02:56]}  d6 {[%clk 0:03:01]} 4. Bc4 {[%clk 0:02:55]}  Nf6 {[%clk 0:03:00]} 5. Qe2 {[%clk 0:02:54]}  O-O {[%clk 0:02:58]} 6. e5 {[%clk 0:02:50]}  Ne8 {[%clk 0:02:54]} 7. e6 {[%clk 0:02:45]}  f5 {[%clk 0:02:51]} 8. Nf3 {[%clk 0:02:41]}  c6 {[%clk 0:02:47]} 9. d5 {[%clk 0:02:24]}  b5 {[%clk 0:02:36]} 10. Bb3 {[%clk 0:02:19]}  b4 {[%clk 0:02:36]} 11. Nd1 {[%clk 0:02:15]}  Ba6 {[%clk 0:02:25]} 12. Qe3 {[%clk 0:01:50]}  Nc7 {[%clk 0:02:22]} 13. c4 {[%clk 0:01:43]}  bxc3 {[%clk 0:02:13]} 14. Nxc3 {[%clk 0:01:42]}  cxd5 {[%clk 0:02:07]} 15. Nxd5 {[%clk 0:01:32]}  Nc6 {[%clk 0:02:06]} 16. Bd2 {[%clk 0:01:23]}  Rb8 {[%clk 0:01:59]} 17. Rc1 {[%clk 0:01:07]}  Nxd5 {[%clk 0:01:26]} 18. Bxd5 {[%clk 0:01:05]}  Nb4 {[%clk 0:01:26]} 19. Bxb4 {[%clk 0:00:35]}  Rxb4 {[%clk 0:01:27]} 20. b3 {[%clk 0:00:31]}  Qa5 {[%clk 0:01:23]} 21. Qd2 {[%clk 0:00:20]}  Bh6 {[%clk 0:00:41]} 22. Qxh6 {[%clk 0:00:08]}  Re4+ {[%clk 0:00:41]} 23. Kd1 {[%clk 0:00:07]}  Qxd5+ {[%clk 0:00:27]} 24. Nd2 {[%clk 0:00:07]}  Re2 {[%clk 0:00:20]} 25. Re1 {[%clk 0:00:04]}  Rxf2 {[%clk 0:00:20]} 26. h4 {[%clk 0:00:02]}  Rxg2 {[%clk 0:00:19]} 27. h5 {[%clk 0:00:02]}  f4 {[%clk 0:00:17]} 0-1


[Site "https://www.chess.com"]

[Event "Titled Tuesday Blitz March 28 Late 2023"]
[White "Chylewski, Patryk"]
[Black "Oliveira, Tiago Batista"]
[WhiteFideId "1186191"]
[BlackFideId "2108291"]
[WhiteElo "2163"]
[BlackElo "1962"]
[Result "0-1"]
[Round "01"]
[TimeControl "180+2"]
[Date "2023.03.28"]
[WhiteClock "0:00:27"]
[BlackClock "0:00:25"]

1. e4 {[%clk 0:03:00]}  c5 {[%clk 0:02:55]} 2. Nf3 {[%clk 0:03:01]}  Nc6 {[%clk 0:02:55]} 3. g3 {[%clk 0:02:57]}  g6 {[%clk 0:02:46]} 4. Bg2 {[%clk 0:02:57]}  Bg7 {[%clk 0:02:46]} 5. O-O {[%clk 0:02:57]}  e6 {[%clk 0:02:46]} 6. c3 {[%clk 0:02:57]}  Nge7 {[%clk 0:02:46]} 7. d4 {[%clk 0:02:57]}  cxd4 {[%clk 0:02:45]} 8. cxd4 {[%clk 0:02:57]}  d5 {[%clk 0:02:45]} 9. e5 {[%clk 0:02:54]}  O-O {[%clk 0:02:43]} 10. Nc3 {[%clk 0:02:47]}  Qb6 {[%clk 0:02:41]} 11. Rb1 {[%clk 0:02:40]}  Qa6 {[%clk 0:02:28]} 12. Bg5 {[%clk 0:02:34]}  b5 {[%clk 0:02:23]} 13. Qe2 {[%clk 0:02:08]}  b4 {[%clk 0:02:16]} 14. Qxa6 {[%clk 0:01:54]}  Bxa6 {[%clk 0:02:15]} 15. Na4 {[%clk 0:01:54]}  Bxf1 {[%clk 0:02:14]} 16. Bxf1 {[%clk 0:01:55]}  Nf5 {[%clk 0:02:12]} 17. Rd1 {[%clk 0:01:53]}  h6 {[%clk 0:02:00]} 18. Bc1 {[%clk 0:01:46]}  Rfc8 {[%clk 0:01:58]} 19. g4 {[%clk 0:01:42]}  Nfxd4 {[%clk 0:01:56]} 20. Nxd4 {[%clk 0:01:34]}  Nxd4 {[%clk 0:01:56]} 21. Rxd4 {[%clk 0:01:26]}  Rxc1 {[%clk 0:01:54]} 22. Rxb4 {[%clk 0:01:27]}  Bxe5 {[%clk 0:01:51]} 23. Kg2 {[%clk 0:01:25]}  Rb8 {[%clk 0:01:35]} 24. Rxb8+ {[%clk 0:01:17]}  Bxb8 {[%clk 0:01:34]} 25. Bd3 {[%clk 0:01:12]}  e5 {[%clk 0:01:25]} 26. f3 {[%clk 0:01:07]}  Rd1 {[%clk 0:01:20]} 27. Be2 {[%clk 0:01:06]}  Rd2 {[%clk 0:01:20]} 28. Kf2 {[%clk 0:01:03]}  e4 {[%clk 0:01:14]} 29. Ke3 {[%clk 0:00:59]}  Rc2 {[%clk 0:01:10]} 30. fxe4 {[%clk 0:00:58]}  dxe4 {[%clk 0:01:10]} 31. Bd1 {[%clk 0:00:54]}  Rxh2 {[%clk 0:01:09]} 32. Kxe4 {[%clk 0:00:53]}  Kg7 {[%clk 0:00:55]} 33. Kf3 {[%clk 0:00:51]}  Rd2 {[%clk 0:00:50]} 34. Be2 {[%clk 0:00:48]}  Bd6 {[%clk 0:00:45]} 35. Bc4 {[%clk 0:00:44]}  Rd4 {[%clk 0:00:42]} 36. b3 {[%clk 0:00:38]}  Rf4+ {[%clk 0:00:42]} 37. Ke3 {[%clk 0:00:39]}  Rxg4 {[%clk 0:00:42]} 38. Nb2 {[%clk 0:00:36]}  Rg2 {[%clk 0:00:41]} 39. Nd3 {[%clk 0:00:34]}  Rxa2 {[%clk 0:00:40]} 40. Ke4 {[%clk 0:00:34]}  Ra3 {[%clk 0:00:38]} 41. Kd5 {[%clk 0:00:34]}  Be7 {[%clk 0:00:37]} 42. Ne5 {[%clk 0:00:34]}  h5 {[%clk 0:00:34]} 43. Ke4 {[%clk 0:00:33]}  f6 {[%clk 0:00:33]} 44. Nc6 {[%clk 0:00:31]}  Bd6 {[%clk 0:00:31]} 45. Nd4 {[%clk 0:00:31]}  Be5 {[%clk 0:00:28]} 46. Nb5 {[%clk 0:00:30]}  Ra1 {[%clk 0:00:27]} 47. Kd5 {[%clk 0:00:29]}  h4 {[%clk 0:00:27]} 48. Ke6 {[%clk 0:00:29]}  h3 {[%clk 0:00:26]} 49. Bd5 {[%clk 0:00:30]}  h2 {[%clk 0:00:26]} 50. Bc6 {[%clk 0:00:27]}  h1=Q {[%clk 0:00:25]} 51. Bxh1 {[%clk 0:00:27]}  Rxh1 {[%clk 0:00:25]} 52. Nxa7 {[%clk 0:00:27]}  Rb1 {[%clk 0:00:25]} 0-1


[Site "https://www.chess.com"]

[Event "Titled Tuesday Blitz March 28 Late 2023"]
[White "Yelisieiev, Yevhenii"]
[Black "Aung Thant Zin"]
[WhiteFideId "14139642"]
[BlackFideId "13000063"]
[WhiteElo "2447"]
[BlackElo "2278"]
[Result "0-1"]
[Round "01"]
[TimeControl "180+2"]
[Date "2023.03.28"]
[WhiteClock "0:00:26"]
[BlackClock "0:00:22"]

1. d4 {[%clk 0:02:59]}  Nf6 {[%clk 0:02:59]} 2. Nf3 {[%clk 0:03:00]}  d5 {[%clk 0:02:58]} 3. c4 {[%clk 0:03:00]}  e6 {[%clk 0:02:59]} 4. Nc3 {[%clk 0:03:00]}  Be7 {[%clk 0:02:59]} 5. Bg5 {[%clk 0:02:56]}  O-O {[%clk 0:02:58]} 6. e3 {[%clk 0:02:56]}  Ne4 {[%clk 0:02:58]} 7. Bxe7 {[%clk 0:02:56]}  Qxe7 {[%clk 0:02:58]} 8. Nxe4 {[%clk 0:02:55]}  dxe4 {[%clk 0:02:58]} 9. Nd2 {[%clk 0:02:55]}  f5 {[%clk 0:02:58]} 10. Be2 {[%clk 0:02:55]}  c5 {[%clk 0:02:58]} 11. d5 {[%clk 0:02:44]}  Rd8 {[%clk 0:02:46]} 12. O-O {[%clk 0:02:42]}  Kh8 {[%clk 0:02:45]} 13. Qb3 {[%clk 0:02:38]}  Na6 {[%clk 0:02:37]} 14. f3 {[%clk 0:02:30]}  exf3 {[%clk 0:02:24]} 15. Bxf3 {[%clk 0:02:27]}  exd5 {[%clk 0:02:19]} 16. cxd5 {[%clk 0:02:24]}  Rb8 {[%clk 0:01:47]} 17. a4 {[%clk 0:02:17]}  Nb4 {[%clk 0:01:45]} 18. Rad1 {[%clk 0:02:12]}  Bd7 {[%clk 0:01:39]} 19. a5 {[%clk 0:01:57]}  Bb5 {[%clk 0:01:34]} 20. Rfe1 {[%clk 0:01:54]}  Nd3 {[%clk 0:01:30]} 21. Qxb5 {[%clk 0:01:53]}  Nxe1 {[%clk 0:01:27]} 22. Rxe1 {[%clk 0:01:53]}  g5 {[%clk 0:01:24]} 23. e4 {[%clk 0:01:45]}  g4 {[%clk 0:01:22]} 24. Bd1 {[%clk 0:01:44]}  Qh4 {[%clk 0:01:13]} 25. Qxc5 {[%clk 0:01:29]}  Qxe1+ {[%clk 0:01:10]} 26. Nf1 {[%clk 0:01:22]}  Qxd1 {[%clk 0:01:06]} 27. Qc3+ {[%clk 0:01:13]}  Kg8 {[%clk 0:01:05]} 28. Qf6 {[%clk 0:01:13]}  Rd7 {[%clk 0:00:55]} 29. Qe6+ {[%clk 0:00:51]}  Rf7 {[%clk 0:00:49]} 30. exf5 {[%clk 0:00:45]}  Rd8 {[%clk 0:00:47]} 31. f6 {[%clk 0:00:40]}  Qxd5 {[%clk 0:00:40]} 32. Qxg4+ {[%clk 0:00:40]}  Kh8 {[%clk 0:00:41]} 33. h4 {[%clk 0:00:37]}  Qd4+ {[%clk 0:00:38]} 34. Qxd4 {[%clk 0:00:35]}  Rxd4 {[%clk 0:00:39]} 35. Ne3 {[%clk 0:00:35]}  Rxf6 {[%clk 0:00:37]} 36. g4 {[%clk 0:00:34]}  Rf3 {[%clk 0:00:35]} 37. Nc2 {[%clk 0:00:23]}  Rd2 {[%clk 0:00:33]} 38. Ne1 {[%clk 0:00:21]}  Rd1 {[%clk 0:00:32]} 39. Kg2 {[%clk 0:00:21]}  Rxe1 {[%clk 0:00:31]} 40. Kxf3 {[%clk 0:00:21]}  Rb1 {[%clk 0:00:31]} 41. g5 {[%clk 0:00:22]}  Rxb2 {[%clk 0:00:28]} 42. h5 {[%clk 0:00:22]}  Rb5 {[%clk 0:00:28]} 43. Kf4 {[%clk 0:00:22]}  Rxa5 {[%clk 0:00:27]} 44. h6 {[%clk 0:00:22]}  Kg8 {[%clk 0:00:27]} 45. Kg4 {[%clk 0:00:21]}  Rb5 {[%clk 0:00:27]} 46. Kh5 {[%clk 0:00:22]}  a5 {[%clk 0:00:27]} 47. Kh4 {[%clk 0:00:22]}  a4 {[%clk 0:00:27]} 48. Kh5 {[%clk 0:00:23]}  a3 {[%clk 0:00:27]} 49. Kh4 {[%clk 0:00:24]}  a2 {[%clk 0:00:27]} 50. Kh5 {[%clk 0:00:24]}  a1=Q {[%clk 0:00:26]} 51. Kh4 {[%clk 0:00:25]}  Qh1+ {[%clk 0:00:25]} 52. Kg4 {[%clk 0:00:26]}  Qe4+ {[%clk 0:00:25]} 53. Kh5 {[%clk 0:00:27]}  Rb4 {[%clk 0:00:22]} 54. g6 {[%clk 0:00:26]}  Rb5# {[%clk 0:00:22]} 0-1


[Site "https://www.chess.com"]

[Event "Titled Tuesday Blitz March 28 Late 2023"]
[White "Pirvulescu, Ekaterina"]
[Black "Ahn, Hongjin"]
[WhiteFideId "13506374"]
[BlackFideId "13201492"]
[WhiteElo "2006"]
[BlackElo "2182"]
[Result "0-1"]
[Round "01"]
[TimeControl "180+2"]
[Date "2023.03.28"]
[WhiteClock "0:00:05"]
[BlackClock "0:00:05"]

1. e4 {[%clk 0:02:57]}  g6 {[%clk 0:02:52]} 2. d4 {[%clk 0:02:51]}  Bg7 {[%clk 0:02:49]} 3. c4 {[%clk 0:02:47]}  d6 {[%clk 0:02:50]} 4. Nc3 {[%clk 0:02:47]}  Nf6 {[%clk 0:02:50]} 5. f3 {[%clk 0:02:46]}  O-O {[%clk 0:02:50]} 6. Be3 {[%clk 0:02:46]}  c5 {[%clk 0:02:50]} 7. Nge2 {[%clk 0:02:44]}  Nc6 {[%clk 0:02:50]} 8. Qd2 {[%clk 0:02:43]}  Qa5 {[%clk 0:02:45]} 9. O-O-O {[%clk 0:02:33]}  Nd7 {[%clk 0:02:40]} 10. Kb1 {[%clk 0:02:18]}  a6 {[%clk 0:02:39]} 11. Nd5 {[%clk 0:02:06]}  e6 {[%clk 0:01:57]} 12. Ne7+ {[%clk 0:01:43]}  Kh8 {[%clk 0:01:53]} 13. Nxc6 {[%clk 0:01:36]}  Qxd2 {[%clk 0:01:49]} 14. Rxd2 {[%clk 0:01:35]}  bxc6 {[%clk 0:01:50]} 15. dxc5 {[%clk 0:01:22]}  dxc5 {[%clk 0:01:50]} 16. Kc2 {[%clk 0:01:09]}  Rb8 {[%clk 0:01:47]} 17. b3 {[%clk 0:01:08]}  a5 {[%clk 0:01:48]} 18. h4 {[%clk 0:01:07]}  a4 {[%clk 0:01:48]} 19. Nc3 {[%clk 0:01:02]}  axb3+ {[%clk 0:01:48]} 20. axb3 {[%clk 0:01:02]}  h6 {[%clk 0:01:24]} 21. Na4 {[%clk 0:01:01]}  Ra8 {[%clk 0:01:21]} 22. Be2 {[%clk 0:00:56]}  f5 {[%clk 0:01:13]} 23. exf5 {[%clk 0:00:52]}  gxf5 {[%clk 0:01:06]} 24. Rhd1 {[%clk 0:00:50]}  f4 {[%clk 0:00:53]} 25. Bf2 {[%clk 0:00:44]}  Nf6 {[%clk 0:00:48]} 26. Bxc5 {[%clk 0:00:41]}  Re8 {[%clk 0:00:42]} 27. Rd8 {[%clk 0:00:37]}  e5 {[%clk 0:00:41]} 28. Rxe8+ {[%clk 0:00:35]}  Nxe8 {[%clk 0:00:42]} 29. Rd8 {[%clk 0:00:34]}  Bf5+ {[%clk 0:00:42]} 30. Rd3 {[%clk 0:00:29]}  Nc7 {[%clk 0:00:35]} 31. Kd2 {[%clk 0:00:27]}  Bxd3 {[%clk 0:00:35]} 32. Bxd3 {[%clk 0:00:26]}  Ne6 {[%clk 0:00:36]} 33. Bf2 {[%clk 0:00:25]}  Rd8 {[%clk 0:00:31]} 34. Kc2 {[%clk 0:00:25]}  Bf8 {[%clk 0:00:30]} 35. Be4 {[%clk 0:00:24]}  Bb4 {[%clk 0:00:26]} 36. Nc3 {[%clk 0:00:20]}  c5 {[%clk 0:00:17]} 37. Bd5 {[%clk 0:00:19]}  Nd4+ {[%clk 0:00:15]} 38. Bxd4 {[%clk 0:00:19]}  cxd4 {[%clk 0:00:16]} 39. Ne4 {[%clk 0:00:19]}  Kg7 {[%clk 0:00:14]} 40. Kd3 {[%clk 0:00:16]}  Rd7 {[%clk 0:00:13]} 41. c5 {[%clk 0:00:16]}  Rxd5 {[%clk 0:00:13]} 42. Kc4 {[%clk 0:00:16]}  Rd8 {[%clk 0:00:13]} 43. Kxb4 {[%clk 0:00:15]}  d3 {[%clk 0:00:14]} 44. Kc3 {[%clk 0:00:16]}  Kf7 {[%clk 0:00:11]} 45. b4 {[%clk 0:00:16]}  Ke6 {[%clk 0:00:12]} 46. b5 {[%clk 0:00:14]}  Rb8 {[%clk 0:00:12]} 47. Kxd3 {[%clk 0:00:13]}  Rxb5 {[%clk 0:00:12]} 48. Kc4 {[%clk 0:00:14]}  Rb2 {[%clk 0:00:11]} 49. c6 {[%clk 0:00:12]}  Rc2+ {[%clk 0:00:11]} 50. Nc3 {[%clk 0:00:11]}  Kd6 {[%clk 0:00:09]} 51. Kd3 {[%clk 0:00:10]}  Rxg2 {[%clk 0:00:09]} 52. Ne4+ {[%clk 0:00:11]}  Kxc6 {[%clk 0:00:09]} 53. Nf6 {[%clk 0:00:10]}  Kd6 {[%clk 0:00:07]} 54. Ke4 {[%clk 0:00:10]}  Ke6 {[%clk 0:00:07]} 55. Ng4 {[%clk 0:00:09]}  h5 {[%clk 0:00:06]} 56. Nh6 {[%clk 0:00:06]}  Re2+ {[%clk 0:00:06]} 57. Kd3 {[%clk 0:00:06]}  Re3+ {[%clk 0:00:06]} 58. Kd2 {[%clk 0:00:05]}  Rxf3 {[%clk 0:00:06]} 59. Ng8 {[%clk 0:00:05]}  Rg3 {[%clk 0:00:05]} 0-1


[Site "https://www.chess.com"]

[Event "Titled Tuesday Blitz March 28 Late 2023"]
[White "angelgab3"]
[Black "hsd2016"]
[WhiteElo "2526"]
[BlackElo "2023"]
[Result "1-0"]
[Round "01"]
[TimeControl "180+2"]
[Date "2023.03.28"]
[WhiteClock "0:00:16"]
[BlackClock "0:00:01"]

1. e4 {[%clk 0:03:00]}  e5 {[%clk 0:02:59]} 2. Nf3 {[%clk 0:03:00]}  Nc6 {[%clk 0:03:00]} 3. Bc4 {[%clk 0:03:00]}  Nf6 {[%clk 0:03:00]} 4. d3 {[%clk 0:03:00]}  Bc5 {[%clk 0:03:00]} 5. O-O {[%clk 0:03:00]}  O-O {[%clk 0:03:00]} 6. Re1 {[%clk 0:03:00]}  h6 {[%clk 0:02:56]} 7. h3 {[%clk 0:02:56]}  d6 {[%clk 0:02:52]} 8. c3 {[%clk 0:02:52]}  a6 {[%clk 0:02:52]} 9. a4 {[%clk 0:02:51]}  Ba7 {[%clk 0:02:49]} 10. Bb3 {[%clk 0:02:44]}  Be6 {[%clk 0:02:49]} 11. Be3 {[%clk 0:02:42]}  Bxe3 {[%clk 0:02:47]} 12. Rxe3 {[%clk 0:02:43]}  Qd7 {[%clk 0:02:40]} 13. Bxe6 {[%clk 0:02:36]}  Qxe6 {[%clk 0:02:41]} 14. a5 {[%clk 0:02:34]}  d5 {[%clk 0:02:38]} 15. Nbd2 {[%clk 0:02:33]}  d4 {[%clk 0:02:36]} 16. Re1 {[%clk 0:02:10]}  dxc3 {[%clk 0:02:36]} 17. bxc3 {[%clk 0:02:11]}  Rad8 {[%clk 0:02:37]} 18. Qc2 {[%clk 0:02:12]}  Qd7 {[%clk 0:02:30]} 19. Re3 {[%clk 0:02:12]}  Nh5 {[%clk 0:02:21]} 20. Nc4 {[%clk 0:02:11]}  f6 {[%clk 0:02:21]} 21. Qb3 {[%clk 0:02:06]}  Kh7 {[%clk 0:02:20]} 22. Qxb7 {[%clk 0:01:45]}  Nf4 {[%clk 0:02:20]} 23. Qxa6 {[%clk 0:01:28]}  Rb8 {[%clk 0:01:42]} 24. Rd1 {[%clk 0:01:16]}  Ne6 {[%clk 0:01:39]} 25. d4 {[%clk 0:01:13]}  Nc5 {[%clk 0:00:47]} 26. dxc5 {[%clk 0:00:40]}  Qxd1+ {[%clk 0:00:48]} 27. Re1 {[%clk 0:00:41]}  Qa4 {[%clk 0:00:47]} 28. Ne3 {[%clk 0:00:29]}  Qxa5 {[%clk 0:00:44]} 29. Qc4 {[%clk 0:00:30]}  Rb5 {[%clk 0:00:31]} 30. Qe6 {[%clk 0:00:25]}  Rxc5 {[%clk 0:00:30]} 31. Qf5+ {[%clk 0:00:25]}  Kh8 {[%clk 0:00:26]} 32. Nh4 {[%clk 0:00:25]}  Ne7 {[%clk 0:00:27]} 33. Qe6 {[%clk 0:00:25]}  Qxc3 {[%clk 0:00:08]} 34. Rd1 {[%clk 0:00:24]}  Ng8 {[%clk 0:00:05]} 35. Ng6+ {[%clk 0:00:24]}  Kh7 {[%clk 0:00:05]} 36. Nxf8+ {[%clk 0:00:25]}  Kh8 {[%clk 0:00:05]} 37. Rd8 {[%clk 0:00:20]}  Qe1+ {[%clk 0:00:03]} 38. Nf1 {[%clk 0:00:16]}  Rc1 {[%clk 0:00:03]} 39. Ng6+ {[%clk 0:00:16]}  Kh7 {[%clk 0:00:04]} 40. Qxg8+ {[%clk 0:00:17]}  Kxg6 {[%clk 0:00:04]} 41. Qe8+ {[%clk 0:00:18]}  Kg5 {[%clk 0:00:04]} 42. Qb5 {[%clk 0:00:16]}  c6 {[%clk 0:00:02]} 43. Qd3 {[%clk 0:00:16]}  Kg6 {[%clk 0:00:02]} 44. Rd7 {[%clk 0:00:16]}  c5 {[%clk 0:00:02]} 45. Qg3+ {[%clk 0:00:15]}  Kh5 {[%clk 0:00:01]} 46. Qg4# {[%clk 0:00:16]} 1-0


[Site "https://www.chess.com"]